bitfinex/quotes_SOLUSD_20240726
["timestamp","ask_amount","ask_price","bid_price","bid_amount"]
[1721983178703,12.31,177.76,177.73,5.6264]
[1721983180911,12.31,177.76,177.74,5.6261]
[1721983182535,12.31,177.77,177.74,5.6261]
[1721983185345,12.31,177.77,177.75,5.6258]
[1721983185642,30.0,177.76,177.75,5.6258]
[1721983187051,12.31,177.77,177.75,5.6258]
[1721983190731,30.0,177.76,177.75,5.6258]
[1721983192242,12.31,177.77,177.75,5.6258]
[1721983193469,45.0,177.78,177.75,5.6258]
[1721983193756,12.31,177.77,177.75,5.6258]
[1721983193959,45.0,177.79,177.76,5.6255]
[1721983194162,12.31,177.77,177.73,14.0657]
[1721983194342,12.31,177.77,177.75,5.6258]
[1721983194552,42.31,177.77,177.75,5.6258]
[1721983195243,42.31,177.77,177.74,5.6261]
[1721983195864,30.0,177.77,177.74,5.6261]
[1721983196172,12.31,177.78,177.74,5.6261]
[1721983196389,45.0,177.77,177.74,5.6261]
[1721983196971,12.31,177.78,177.75,5.6258]
[1721983199171,2.4067518,177.84,177.77,12.31]
[1721983199354,21.13002814,177.86,177.8,12.31]
[1721983199552,12.31,177.86,177.8,12.31]
[1721983199964,17.9324,177.86,177.81,5.6237]
[1721983200161,11.50450287,177.88,177.83,5.6232]
[1721983200371,12.31,177.87,177.83,5.6232]
[1721983200559,17.9317,177.89,177.84,5.6229]
[1721983200745,17.9317,177.89,177.84,17.9329]
[1721983201069,17.9317,177.89,177.85,5.6226]
[1721983201070,12.31,177.89,177.85,5.6226]
[1721983202876,17.9312,177.9,177.85,5.6226]
[1721983203255,45.0,177.89,177.85,5.6226]
[1721983203451,57.31,177.89,177.85,5.6226]
[1721983208162,45.0,177.89,177.85,5.6226]
[1721983208356,57.31,177.89,177.85,5.6226]
[1721983209158,5.88155536,177.92,177.88,5.6217]
[1721983209344,12.31,177.92,177.88,5.6217]
[1721983209557,5.6199,177.94,177.89,5.6214]
[1721983209759,12.31,177.93,177.89,5.6214]
[1721983210299,5.6195,177.96,177.9,5.621]
[1721983210460,30.0,177.91,177.9,5.621]
[1721983210989,12.31,177.94,177.9,5.621]
[1721983211192,12.31,177.95,177.91,5.6207]
[1721983213315,17.9292,177.96,177.91,5.6207]
[1721983215398,105.8788742,178.0,177.92,5.6203]
[1721983215692,12.31,177.96,177.92,5.6203]
[1721983216497,20.0,177.99,177.92,5.6203]
[1721983216791,12.31,177.96,177.92,5.6203]
[1721983216968,12.31,177.96,177.93,5.62]
[1721983218195,12.31,177.96,177.91,17.9305]
[1721983218684,12.31,177.96,177.92,5.6204]
[1721983220261,5.6189,177.97,177.92,5.6204]
[1721983220462,12.31,177.96,177.92,5.6204]
[1721983221875,12.31,177.97,177.93,5.6201]
[1721983222597,12.31,177.99,177.94,6.4672]
[1721983222771,12.31,177.99,177.94,18.7772]
[1721983223569,12.31,177.99,177.94,35.1084]
[1721983224079,12.31,177.99,177.95,5.6195]
[1721983224687,100.0,178.0,177.97,5.6187]
[1721983224867,100.0,178.0,177.94,49.1574]
[1721983224868,112.31,178.0,177.96,5.6191]
[1721983225789,117.9279,178.0,177.96,5.6191]
[1721983226677,12.31,177.99,177.95,5.6195]
[1721983227286,105.6179,178.0,177.95,5.6195]
[1721983227487,12.31,177.99,177.95,5.6195]
[1721983228189,112.31,178.0,177.96,5.6192]
[1721983229792,12.31,177.99,177.95,5.6195]
[1721983230174,17.9282,177.99,177.95,5.6195]
[1721983230395,12.31,177.98,177.95,5.6195]
[1721983232073,12.31,177.97,177.94,22.7984]
[1721983232482,12.31,177.96,177.94,22.7984]
[1721983233193,12.31,177.96,177.94,28.4182]
[1721983233396,12.31,177.96,177.94,22.7984]
[1721983234787,12.31,177.96,177.94,16.3312]
[1721983235096,100.0,178.0,177.94,16.3312]
[1721983235279,12.31,177.98,177.94,16.3312]
[1721983235683,12.31,177.98,177.96,5.6191]
[1721983236883,12.31,177.99,177.96,5.6191]
[1721983237082,12.31,177.97,177.94,16.3312]
[1721983237293,12.31,177.96,177.94,16.3312]
[1721983238598,12.31,177.96,177.94,21.951]
[1721983238807,30.0,177.97,177.95,5.6194]
[1721983238808,42.31,177.97,177.95,5.6194]
[1721983239103,30.0,177.96,177.95,5.6194]
[1721983239804,12.31,177.97,177.95,5.6194]
[1721983240588,12.31,177.98,177.95,5.6194]
[1721983240795,100.0,178.0,177.95,14.0483]
[1721983241104,112.31,178.0,177.97,5.6189]
[1721983241406,100.0,178.0,177.97,5.6189]
[1721983241786,112.31,178.0,177.97,5.6189]
[1721983242381,12.31,177.99,177.95,77.62419]
[1721983242783,17.9283,177.99,177.95,72.00489]
[1721983243606,17.9283,177.99,177.95,77.62439]
[1721983243792,12.31,177.99,177.95,77.62439]
[1721983245011,12.31,177.98,177.95,77.62439]
[1721983245817,105.6179,178.0,177.95,77.62439]
[1721983245818,12.31,177.96,177.95,57.95659]
[1721983246106,112.31,178.0,177.97,5.6188]
[1721983247313,30.0,177.98,177.97,5.6188]
[1721983248215,12.31,177.99,177.96,5.6192]
[1721983249511,112.31,178.0,177.96,5.6192]
[1721983249817,112.31,178.0,177.97,5.6188]
[1721983255126,12.31,177.99,177.96,14.0475]
[1721983255329,12.31,177.98,177.96,14.0475]
[1721983255529,12.31,177.97,177.96,14.0475]
[1721983256518,12.31,177.98,177.96,14.0475]
[1721983257215,12.31,177.97,177.95,57.95659]
[1721983257402,12.31,177.96,177.95,57.95659]
[1721983257804,42.31,177.96,177.95,57.95659]
[1721983258827,87.31,177.96,177.95,57.95659]
[1721983259407,92.9292,177.96,177.95,57.95659]
[1721983259610,112.9292,177.96,177.95,57.95659]
[1721983260710,118.8088165,177.96,177.95,57.95659]
[1721983261103,118.8088165,177.96,177.95,55.47476731]
[1721983263716,118.8088165,177.96,177.86,12.2287]
[1721983263717,5.6209,177.91,177.86,12.2287]
[1721983264022,12.31,177.88,177.86,12.2287]
[1721983264226,75.0,177.9,177.88,5.6217]
[1721983264227,12.31,177.89,177.88,5.6217]
[1721983264424,12.31,177.89,177.87,5.622]
[1721983264624,42.31,177.9,177.87,5.622]
[1721983264828,12.31,177.9,177.88,5.6217]
[1721983265633,12.31,177.91,177.88,5.6217]
[1721983265818,12.31,177.91,177.89,5.6214]
[1721983266135,12.31,177.93,177.89,5.6214]
[1721983266337,32.31,177.92,177.88,5.6217]
[1721983267031,30.0,177.89,177.88,5.6217]
[1721983267916,32.31,177.92,177.88,5.6217]
[1721983269731,12.31,177.92,177.88,5.6217]
[1721983270031,12.31,177.94,177.89,26.3633]
[1721983271239,12.31,177.94,177.91,5.6207]
[1721983271818,105.87899274,178.0,177.92,13.43411569]
[1721983272013,12.31,177.97,177.92,13.43411569]
[1721983272425,12.31,177.98,177.92,13.43411569]
[1721983272625,45.0,177.97,177.92,13.43411569]
[1721983272816,45.0,177.97,177.92,12.31]
[1721983273131,57.31,177.97,177.92,12.31]
[1721983273515,12.31,177.96,177.91,26.3612]
[1721983273715,12.31,177.96,177.92,5.6204]
[1721983273916,17.9292,177.96,177.91,14.0512]
[1721983274117,12.31,177.95,177.91,14.0512]
[1721983274317,17.9292,177.96,177.91,14.0512]
[1721983275039,17.9292,177.96,177.91,19.6717]
[1721983275741,17.9292,177.96,177.92,5.6204]
[1721983275932,12.31,177.96,177.92,5.6204]
[1721983276130,12.31,177.96,177.93,5.6201]
[1721983278814,12.31,177.96,177.92,5.6204]
[1721983279017,17.9292,177.96,177.92,5.6204]
[1721983279245,12.31,177.95,177.92,5.6204]
[1721983279430,5.6192,177.96,177.91,14.0512]
[1721983279431,12.31,177.96,177.93,5.6201]
[1721983279620,12.31,177.97,177.94,5.6198]
[1721983279828,12.31,177.97,177.93,14.0498]
[1721983280135,12.31,177.98,177.96,5.6192]
[1721983281337,100.0,178.0,177.96,5.6192]
[1721983281542,100.0,178.0,177.98,5.6185]
[1721983281730,30.0,177.99,177.98,5.6185]
[1721983282035,100.0,178.0,177.98,5.6185]
[1721983282426,112.31,178.0,177.95,26.3582]
[1721983282740,112.31,178.0,177.97,14.0466]
[1721983282741,100.0,178.0,177.97,14.0466]
[1721983283741,100.0,178.0,177.98,5.6185]
[1721983284039,100.0,178.0,177.97,19.6654]
[1721983285428,112.31,178.0,177.97,19.6654]
[1721983285629,12.31,177.99,177.97,14.0466]
[1721983286129,100.0,178.0,177.97,14.0466]
[1721983286441,100.0,178.0,177.99,5.6182]
[1721983286620,130.0,178.0,177.99,5.6182]
[1721983287645,130.0,178.0,177.97,19.6652]
[1721983287851,142.31,178.0,177.97,19.6652]
[1721983288439,12.31,177.98,177.97,14.0466]
[1721983288944,12.31,177.99,177.97,14.0466]
[1721983289147,12.31,177.99,177.97,19.6655]
[1721983289535,12.31,177.99,177.97,14.0466]
[1721983289735,12.31,177.99,177.97,19.6655]
[1721983291530,112.31,178.0,177.97,19.6655]
[1721983292651,12.31,177.99,177.97,19.6655]
[1721983294339,100.0,178.0,177.97,19.6655]
[1721983294340,112.31,178.0,177.97,19.6655]
[1721983295440,100.0,178.0,177.98,5.6185]
[1721983297056,100.0,178.0,177.97,19.6655]
[1721983297359,112.31,178.0,177.97,19.6655]
[1721983297564,100.0,178.0,177.98,5.6186]
[1721983298053,112.31,178.0,177.97,19.6654]
[1721983298662,112.31,178.0,177.98,5.6185]
[1721983299343,100.0,178.0,177.98,5.6185]
[1721983301361,100.0,178.0,177.97,19.6654]
[1721983303061,100.0,178.0,177.97,14.0466]
[1721983303247,100.0,178.0,177.98,5.6185]
[1721983305355,100.0,178.0,177.97,19.6654]
[1721983307169,100.0,178.0,177.98,5.6185]
[1721983308572,100.0,178.0,177.99,5.6182]
[1721983310267,112.31,178.0,177.96,15.772]
[1721983311053,112.31,178.0,177.97,5.6189]
[1721983311255,112.31,178.0,177.96,15.772]
[1721983311567,17.9283,177.99,177.96,15.772]
[1721983311869,12.31,177.98,177.94,5.6198]
[1721983312071,12.31,177.97,177.93,5.6198]
[1721983312461,12.31,177.97,177.94,5.6197]
[1721983312661,12.31,177.98,177.94,5.6197]
[1721983317278,17.9286,177.98,177.94,5.6197]
[1721983319073,12.31,177.98,177.94,5.6197]
[1721983322277,100.0,178.0,177.94,12.31]
[1721983322480,100.0,178.0,177.96,12.31]
[1721983322659,100.0,178.0,177.98,5.6183]
[1721983322979,30.0,177.99,177.98,5.6183]
[1721983324680,100.0,178.0,177.98,5.6183]
[1721983325978,100.0,178.0,177.97,5.6188]
[1721983327268,100.0,178.0,177.98,5.6185]
[1721983328888,100.0,178.0,177.97,5.6189]
[1721983330383,100.0,178.0,177.99,5.6182]
[1721983333762,100.0,178.0,177.98,47.233]
[1721983334167,100.0,178.0,177.98,34.923]
[1721983334369,100.0,178.0,177.98,36.04657448]
[1721983335186,100.0,178.0,177.98,29.3045]
[1721983335391,100.0,178.0,177.98,34.9231]
[1721983335890,100.0,178.0,177.99,17.9282]
[1721983338188,100.0,178.0,177.99,5.6182]
[1721983347684,100.0,178.0,177.99,17.9282]
[1721983349001,100.0,178.0,177.99,5.6182]
[1721983356886,100.0,178.0,177.98,19.6647]
[1721983357694,100.0,178.0,177.99,5.6182]
[1721983358607,100.0,178.0,177.98,19.6647]
[1721983358789,100.0,178.0,177.99,5.6182]
[1721983362620,100.0,178.0,177.98,14.0462]
[1721983363523,100.0,178.0,177.98,19.6647]
[1721983363902,100.0,178.0,177.99,5.6182]
[1721983366826,100.0,178.0,177.99,17.9282]
[1721983372526,0.7894132,178.05,178.04,47.7419]
[1721983372527,1.32e-05,178.05,178.04,47.7419]
[1721983372708,1.32e-05,178.05,178.04,146.731]
[1721983372908,17.2859132,178.22,178.15,5.6131]
[1721983373108,12.31,178.17,178.15,5.6131]
[1721983373309,12.31,178.19,178.17,14.0313]
[1721983373523,5.6114,178.21,178.17,14.0313]
[1721983373721,12.31,178.19,178.17,14.0313]
[1721983374116,12.31,178.19,178.15,5.613]
[1721983374320,12.31,178.17,178.11,12.31]
[1721983374521,17.2859132,178.22,178.11,5.6142]
[1721983374522,12.31,178.16,178.11,5.6142]
[1721983374835,12.31,178.14,178.11,5.6142]
[1721983375020,12.31,178.14,178.1,5.6148]
[1721983375610,12.31,178.14,178.11,5.6144]
[1721983375813,12.31,178.12,178.09,19.6523]
[1721983377230,12.31,178.13,178.1,5.6146]
[1721983377538,12.31,178.14,178.1,5.6146]
[1721983379513,12.31,178.14,178.11,5.6144]
[1721983380448,12.31,178.14,178.12,5.614]
[1721983380752,49.24,178.2,178.1,12.31]
[1721983380753,12.31,178.15,178.1,12.31]
[1721983380950,12.31,178.14,178.09,26.3474]
[1721983381144,12.31,178.14,178.11,5.6144]
[1721983382224,12.31,178.15,178.12,5.614]
[1721983382657,12.31,178.14,178.12,5.614]
[1721983383936,12.31,178.15,178.13,5.6138]
[1721983384332,12.31,178.16,178.13,5.6138]
[1721983385057,12.31,178.16,178.14,5.6135]
[1721983386233,12.31,178.16,178.13,5.6138]
[1721983386441,12.31,178.16,178.11,14.0355]
[1721983386657,12.31,178.16,178.12,5.6138]
[1721983387563,12.31,178.16,178.11,14.0355]
[1721983387735,12.31,178.16,178.14,5.6135]
[1721983388156,12.31,178.16,178.15,5.6132]
[1721983388463,12.31,178.17,178.15,5.6132]
[1721983388838,12.31,178.18,178.14,14.0338]
[1721983389549,12.31,178.17,178.15,5.6129]
[1721983389954,5.6114,178.21,178.15,5.6129]
[1721983390166,17.2859132,178.22,178.17,5.6123]
[1721983390372,12.31,178.19,178.17,19.6439]
[1721983390542,12.31,178.19,178.18,5.6123]
[1721983391145,12.31,178.19,178.17,19.6438]
[1721983391352,12.31,178.18,178.17,19.6438]
[1721983392243,12.31,178.19,178.18,5.6122]
[1721983393243,12.31,178.19,178.17,14.0313]
[1721983395058,0.7894132,178.22,178.17,14.0313]
[1721983395362,0.7894132,178.22,178.17,19.6436]
[1721983395363,12.31,178.19,178.17,19.6436]
[1721983395963,12.31,178.19,178.18,5.6123]
[1721983396963,12.31,178.19,178.17,19.6438]
[1721983397642,12.31,178.19,178.17,14.0313]
[1721983398167,5.6114,178.21,178.17,14.0313]
[1721983398350,12.31,178.19,178.17,19.6438]
[1721983398548,6.4004132,178.22,178.18,5.6122]
[1721983398749,12.31,178.19,178.18,5.6122]
[1721983401178,12.31,178.19,178.17,19.6439]
[1721983403456,0.7894132,178.22,178.18,5.6123]
[1721983403673,12.31,178.19,178.18,5.6123]
[1721983404076,12.31,178.19,178.17,14.0313]
[1721983404570,12.31,178.18,178.15,5.6129]
[1721983404770,12.31,178.17,178.15,5.6129]
[1721983405361,12.31,178.18,178.15,5.6129]
[1721983405782,5.6113,178.21,178.16,5.6129]
[1721983405984,12.31,178.18,178.16,5.6129]
[1721983409389,12.31,178.18,178.14,14.0338]
[1721983409765,12.31,178.18,178.15,5.6132]
[1721983409966,12.31,178.18,178.14,14.0338]
[1721983410176,12.31,178.17,178.14,14.0338]
[1721983410377,12.31,178.17,178.14,19.647]
[1721983410963,12.31,178.17,178.15,5.6131]
[1721983411166,12.31,178.18,178.16,5.6129]
[1721983412067,12.31,178.17,178.14,14.0338]
[1721983412362,12.31,178.15,178.13,5.6137]
[1721983413683,0.7894132,178.22,178.19,5.6119]
[1721983413866,12.31,178.2,178.18,5.612]
[1721983414377,12.31,178.19,178.18,5.6122]
[1721983414577,12.31,178.19,178.16,14.0322]
[1721983414884,12.31,178.17,178.16,19.6449]
[1721983415882,12.31,178.17,178.15,5.6131]
[1721983416077,12.31,178.16,178.14,5.6135]
[1721983416391,12.31,178.2,178.19,5.6119]
[1721983416566,0.7894132,178.22,178.21,5.6113]
[1721983416771,13.0994132,178.22,178.15,1.1221907]
[1721983416976,12.31,178.2,178.19,19.6418]
[1721983417285,12.31,178.2,178.19,19.6416]
[1721983418501,0.7894132,178.22,178.21,5.6113]
[1721983418704,0.7894132,178.22,178.21,6.73321488]
[1721983418871,0.7894132,178.22,178.21,5.6113]
[1721983420601,13.0994132,178.22,178.19,19.6416]
[1721983420907,13.0994132,178.22,178.21,5.6113]
[1721983420908,0.7894132,178.22,178.21,5.6113]
[1721983423004,13.0994132,178.22,178.21,5.6113]
[1721983423295,13.0994132,178.22,178.19,19.6416]
[1721983423516,12.31,178.2,178.19,19.6416]
[1721983424303,12.31,178.2,178.16,19.6451]
[1721983424491,12.31,178.17,178.14,5.6132]
[1721983424695,12.31,178.15,178.14,5.6132]
[1721983424891,12.31,178.15,178.13,14.0346]
[1721983425099,12.31,178.14,178.11,5.6144]
[1721983425409,12.31,178.13,178.11,5.6144]
[1721983425711,12.31,178.13,178.12,5.6141]
[1721983426605,12.31,178.13,178.12,19.6495]
[1721983426815,12.31,178.14,178.13,5.6137]
[1721983427107,12.31,178.14,178.12,14.0354]
[1721983427304,12.31,178.14,178.12,19.6494]
[1721983427807,12.31,178.14,178.12,14.0354]
[1721983428287,12.31,178.14,178.12,19.6495]
[1721983428488,12.31,178.15,178.12,19.6495]
[1721983430109,21.9025,178.2,178.12,26.3454]
[1721983430324,12.31,178.17,178.12,26.3454]
[1721983430612,12.31,178.18,178.16,5.6129]
[1721983431288,12.31,178.18,178.15,19.6461]
[1721983431905,7.1986132,178.22,178.15,14.0329]
[1721983432109,12.31,178.18,178.16,5.6126]
[1721983432630,0.7894132,178.22,178.19,5.6117]
[1721983432827,12.31,178.21,178.19,5.6117]
[1721983432997,12.31,178.21,178.2,5.6116]
[1721983433323,12.31,178.21,178.19,5.6119]
[1721983436590,12.31,178.21,178.2,5.6114]
[1721983437118,12.31,178.21,178.19,5.6119]
[1721983438020,12.31,178.21,178.2,5.6116]
[1721983439014,12.31,178.21,178.18,19.6427]
[1721983440707,12.31,178.2,178.18,14.0305]
[1721983440901,12.31,178.2,178.15,26.343]
[1721983441235,12.31,178.19,178.16,5.6126]
[1721983441727,12.31,178.19,178.17,5.6125]
[1721983441896,0.7894132,178.22,178.18,14.0307]
[1721983442099,12.31,178.21,178.18,14.0307]
[1721983443118,12.31,178.21,178.19,5.6118]
[1721983443721,12.31,178.21,178.2,5.6116]
[1721983444708,13.0994132,178.22,178.21,5.6113]
[1721983444912,13.0994132,178.22,178.18,14.0307]
[1721983445115,12.31,178.21,178.18,14.0307]
[1721983445329,12.31,178.21,178.2,5.6116]
[1721983445535,12.31,178.21,178.18,14.0307]
[1721983445731,12.31,178.21,178.19,5.6119]
[1721983446051,12.31,178.21,178.18,19.6429]
[1721983446337,12.31,178.2,178.18,19.6429]
[1721983446926,12.31,178.19,178.18,19.6429]
[1721983447141,12.31,178.19,178.18,14.0307]
[1721983447846,12.31,178.19,178.17,5.6125]
[1721983448011,0.7894132,178.22,178.18,5.6122]
[1721983448212,12.31,178.19,178.18,5.6122]
[1721983450715,12.31,178.19,178.17,5.6125]
[1721983451112,51.4005132,178.22,178.17,5.6125]
[1721983451323,12.31,178.19,178.17,5.6125]
[1721983452316,51.4005132,178.22,178.17,5.6125]
[1721983452514,12.31,178.19,178.18,19.6427]
[1721983452730,12.31,178.2,178.19,5.6119]
[1721983453631,0.7894132,178.22,178.2,5.6115]
[1721983453937,0.7894132,178.22,178.18,14.0307]
[1721983453938,0.7894132,178.22,178.21,5.6113]
[1721983454813,0.7894132,178.22,178.21,19.6396]
[1721983455342,0.7894132,178.22,178.21,14.0283]
[1721983455927,0.7894132,178.22,178.2,5.6116]
[1721983456240,13.0994132,178.22,178.19,5.6119]
[1721983457517,12.31,178.21,178.19,5.6119]
[1721983458123,13.0994132,178.22,178.19,5.6119]
[1721983458735,12.31,178.2,178.18,5.6122]
[1721983458923,12.31,178.2,178.16,5.6126]
[1721983459249,12.31,178.18,178.16,19.6441]
[1721983459620,12.31,178.18,178.16,14.0315]
[1721983460333,12.31,178.18,178.16,19.6444]
[1721983461419,12.31,178.18,178.16,14.0315]
[1721983461839,12.31,178.18,178.16,19.6444]
[1721983462223,12.31,178.19,178.16,19.6444]
[1721983463037,12.31,178.19,178.17,5.6125]
[1721983463818,0.7894132,178.22,178.18,5.6123]
[1721983464018,12.31,178.19,178.18,5.6123]
[1721983464219,12.31,178.2,178.18,5.6123]
[1721983465018,12.31,178.21,178.18,5.6123]
[1721983466120,0.7894132,178.22,178.18,5.6123]
[1721983466323,13.0994132,178.22,178.18,5.6123]
[1721983467540,12.31,178.21,178.18,5.6123]
[1721983467925,12.31,178.21,178.19,5.6119]
[1721983468126,13.0994132,178.22,178.19,5.6119]
[1721983469043,0.7894132,178.22,178.19,5.6119]
[1721983469246,13.0994132,178.22,178.2,5.6116]
[1721983469425,0.7894132,178.22,178.2,5.6116]
[1721983470624,0.7894132,178.22,178.21,5.6113]
[1721983473162,0.7894132,178.22,178.21,6.73331691]
[1721983473332,0.7894132,178.22,178.21,5.6113]
[1721983475532,13.0994132,178.22,178.2,14.0283]
[1721983475736,12.31,178.21,178.17,14.0313]
[1721983477130,12.31,178.21,178.2,5.6116]
[1721983477341,13.0994132,178.22,178.2,5.6116]
[1721983480042,13.0994132,178.22,178.19,14.0293]
[1721983480043,13.0994132,178.22,178.21,5.6113]
[1721983483269,13.0994132,178.22,178.2,5.6116]
[1721983485344,12.31,178.21,178.2,5.6116]
[1721983486662,12.31,178.21,178.19,14.0293]
[1721983486846,12.31,178.21,178.19,19.6412]
[1721983494271,0.7894132,178.22,178.19,19.6412]
[1721983494449,13.0994132,178.22,178.19,19.6412]
[1721983495543,0.7894132,178.22,178.19,19.6412]
[1721983495759,13.0994132,178.22,178.19,19.6412]
[1721983496545,13.0994132,178.22,178.19,14.0293]
[1721983496748,12.31,178.21,178.19,14.0293]
[1721983500450,12.31,178.21,178.19,19.6412]
[1721983504261,12.31,178.21,178.2,5.6116]
[1721983504568,30.0,178.21,178.2,5.6116]
[1721983505256,0.7894132,178.22,178.19,19.6412]
[1721983506363,13.0994132,178.22,178.19,19.6412]
[1721983506664,12.31,178.21,178.16,26.3422]
[1721983506965,12.31,178.21,178.18,5.6122]
[1721983509258,12.31,178.19,178.15,5.6131]
[1721983509459,12.31,178.18,178.14,5.6135]
[1721983509781,12.31,178.18,178.15,5.6131]
[1721983510350,12.31,178.18,178.16,5.6129]
[1721983510551,12.31,178.17,178.15,5.6131]
[1721983513260,0.7894132,178.22,178.15,12.31]
[1721983513465,12.31,178.2,178.15,12.31]
[1721983513670,0.7894132,178.22,178.17,26.3407]
[1721983514279,0.7894132,178.22,178.2,5.6115]
[1721983514567,0.7894132,178.22,178.17,26.3407]
[1721983514568,12.31,178.21,178.18,5.6121]
[1721983514766,0.7894132,178.22,178.18,5.6121]
[1721983514767,12.31,178.2,178.18,5.6121]
[1721983515073,12.31,178.21,178.18,5.6121]
[1721983515658,12.31,178.21,178.19,5.6119]
[1721983516172,12.31,178.21,178.18,5.6122]
[1721983517286,12.31,178.21,178.17,14.0307]
[1721983517287,12.31,178.2,178.17,19.6433]
[1721983517677,12.31,178.19,178.17,19.6433]
[1721983518367,12.31,178.2,178.17,19.6433]
[1721983519172,12.31,178.18,178.14,14.0338]
[1721983519566,12.31,178.18,178.15,5.6129]
[1721983521459,12.31,178.17,178.15,5.6129]
[1721983523279,12.31,178.18,178.16,5.6129]
[1721983524054,12.31,178.2,178.17,5.6125]
[1721983524259,6.4004132,178.22,178.17,5.6125]
[1721983524481,12.31,178.2,178.17,5.6125]
[1721983529396,12.31,178.19,178.17,5.6125]
[1721983529699,12.31,178.19,178.16,19.6445]
[1721983530417,12.31,178.18,178.16,19.6445]
[1721983530786,12.31,178.17,178.14,5.6133]
[1721983530998,12.31,178.16,178.14,5.6133]
[1721983531581,12.31,178.16,178.15,5.6132]
[1721983532521,12.31,178.16,178.14,5.6135]
[1721983534003,12.31,178.18,178.15,5.6131]
[1721983534193,12.31,178.18,178.16,5.6129]
[1721983534499,12.31,178.19,178.17,5.6126]
[1721983534686,30.0,178.18,178.17,5.6126]
[1721983535198,12.31,178.19,178.16,5.6129]
[1721983536329,12.31,178.18,178.16,5.6129]
[1721983536688,12.31,178.18,178.15,5.6131]
[1721983536919,12.31,178.17,178.14,19.6468]
[1721983537428,5.612,178.19,178.14,19.6468]
[1721983537720,12.31,178.17,178.14,19.6468]
[1721983538094,0.7894132,178.22,178.17,14.0312]
[1721983538299,12.31,178.21,178.18,5.6121]
[1721983538817,13.0994132,178.22,178.19,5.6119]
[1721983539694,13.0994132,178.22,178.18,5.6122]
[1721983540203,13.0994132,178.22,178.17,14.0312]
[1721983540204,12.31,178.2,178.17,14.0312]
[1721983540910,12.31,178.2,178.17,19.6435]
[1721983541507,12.31,178.21,178.18,5.6122]
[1721983542612,12.31,178.21,178.19,5.6119]
[1721983543113,12.31,178.21,178.18,5.6122]
[1721983543323,12.31,178.21,178.17,19.6437]
[1721983544397,12.31,178.21,178.18,5.6122]
[1721983544895,0.7894132,178.22,178.17,14.0312]
[1721983545103,13.0994132,178.22,178.17,14.0312]
[1721983545314,0.7894132,178.22,178.17,26.3412]
[1721983545532,0.7894132,178.22,178.21,5.6113]
[1721983547112,0.7894132,178.22,178.21,17.9213]
[1721983547409,0.7894132,178.22,178.21,5.6113]
[1721983548598,0.7894132,178.22,178.2,5.6116]
[1721983548599,13.0994132,178.22,178.2,5.6116]
[1721983549518,12.31,178.21,178.2,5.6116]
[1721983550718,12.31,178.21,178.19,19.6411]
[1721983551411,12.31,178.21,178.2,5.6116]